bitfinex/quotes_ETHUSD_20241130
["timestamp","ask_amount","ask_price","bid_price","bid_amount"]
[1732983804544,0.1,3663.2,3662.0,2.08872546]
[1732983804738,0.1,3663.2,3661.2,0.2723]
[1732983804739,0.1,3663.4,3662.4,2.08872546]
[1732983805964,0.13412379,3663.4,3662.1,0.55]
[1732983806317,0.1,3663.4,3662.1,0.55]
[1732983806513,0.1,3663.4,3662.2,0.26387255]
[1732983807157,1.2053,3663.5,3662.2,0.26387255]
[1732983807158,1.3053,3663.5,3662.8,2.08872546]
[1732983807854,1.2053,3663.8,3662.8,2.08872546]
[1732983808259,0.1,3663.9,3662.8,2.08872546]
[1732983808611,0.1,3663.9,3663.2,2.08872546]
[1732983813872,1.3053,3663.8,3663.2,2.08872546]
[1732983815279,1.2053,3663.8,3663.2,2.08872546]
[1732983820938,1.3053,3663.8,3663.3,0.9435945]
[1732983822952,1.2053,3663.8,3663.3,0.9435945]
[1732983824894,1.2053,3663.8,3663.0,2.09078842]
[1732983831100,1.34583,3663.8,3663.0,2.09078842]
[1732983833499,1.34583,3663.8,3662.6,2.09078842]
[1732983835890,1.3674,3663.5,3662.2,2.35466097]
[1732983837896,1.3674,3663.5,3662.6,2.09078842]
[1732983838101,1.3674,3663.5,3662.7,0.20907884]
[1732983840715,1.3674,3663.5,3663.0,2.09078842]
[1732983841001,1.2656,3663.8,3663.4,2.09078842]
[1732983841213,1.2656,3663.8,3662.3,0.34104427]
[1732983841379,1.2656,3663.8,3662.2,0.53617255]
[1732983841380,1.2656,3663.8,3662.6,2.09078842]
[1732983841707,1.2656,3663.8,3663.0,2.09078842]
[1732983842276,1.2656,3663.8,3663.4,2.09078842]
[1732983842488,1.51911314,3664.4,3663.4,2.09078842]
[1732983842813,1.51911314,3664.4,3662.7,0.20907884]
[1732983842814,1.2656,3664.4,3663.8,2.09078842]
[1732983844015,1.2656,3664.4,3663.9,2.09078842]
[1732983844230,1.2656,3664.4,3664.3,2.09078842]
[1732983844531,1.29970813,3665.2,3664.3,2.09078842]
[1732983844809,0.03410715,3665.1,3664.3,2.09078842]
[1732983844993,1.2656,3664.9,3663.1,0.54659536]
[1732983845478,1.2656,3664.9,3664.8,0.9429132]
[1732983845683,1.41216,3664.9,3664.8,0.9429132]
[1732983846677,1.2656,3664.9,3664.8,0.9429132]
[1732983847687,8.99,3665.6,3664.8,0.9429132]
[1732983847977,0.27628049,3665.8,3664.1,0.9429132]
[1732983847978,1.2656,3665.5,3665.2,0.9429132]
[1732983849006,1.2656,3665.5,3665.4,2.08830972]
[1732983849325,1.54188049,3665.8,3665.4,2.08830972]
[1732983849918,1.2656,3665.8,3665.4,2.08830972]
[1732983850775,1.2656,3666.2,3665.4,2.08830972]
[1732983850974,1.2656,3666.2,3666.0,2.08830972]
[1732983853400,1.2656,3666.8,3666.0,2.08830972]
[1732983853734,1.2656,3666.5,3666.0,2.08830972]
[1732983853885,1.2656,3666.3,3666.0,2.08830972]
[1732983854600,0.96642517,3667.4,3662.7,0.20907884]
[1732983854601,1.2656,3665.9,3665.2,2.08830972]
[1732983854829,1.299702,3665.8,3665.2,2.08830972]
[1732983855469,1.399702,3665.8,3665.2,2.08830972]
[1732983855772,1.399702,3665.8,3663.1,0.2723]
[1732983855773,1.2656,3665.5,3664.8,2.08830972]
[1732983855967,0.1,3665.4,3664.8,2.08830972]
[1732983856135,1.49970441,3665.4,3664.8,2.08830972]
[1732983856636,0.1,3665.2,3664.4,2.08830972]
[1732983856981,1.273,3664.8,3664.4,2.08830972]
[1732983857265,0.1473,3664.7,3664.4,2.08830972]
[1732983860473,0.1473,3664.7,3664.0,2.08830972]
[1732983862364,1.273,3664.8,3664.0,2.08830972]
[1732983863088,1.273,3665.1,3664.4,2.08830972]
[1732983866718,1.273,3665.1,3664.8,2.08830972]
[1732983866861,1.273,3665.6,3664.8,2.08830972]
[1732983867059,1.373,3665.6,3663.6,0.55]
[1732983867263,2.08830972,3666.6,3663.6,0.55]
[1732983867264,1.273,3665.3,3664.3,2.08830972]
[1732983867507,0.03410605,3665.2,3664.3,2.08830972]
[1732983867806,1.273,3665.1,3664.3,2.08830972]
[1732983868009,1.273,3664.9,3664.3,2.08830972]
[1732983868173,0.03410856,3664.8,3664.3,2.08830972]
[1732983868501,0.14071086,3664.8,3664.3,2.08830972]
[1732983869515,1.273,3664.7,3663.9,2.08830972]
[1732983870139,1.273,3664.5,3663.9,2.08830972]
[1732983870648,1.273,3664.5,3663.5,2.08830972]
[1732983872778,0.33,3664.4,3663.5,2.08830972]
[1732983874845,0.33,3664.4,3663.9,2.08830972]
[1732983875241,0.33,3664.4,3664.3,2.08830972]
[1732983880383,0.33,3664.4,3664.3,2.36060972]
[1732983882560,0.33,3664.4,3664.3,2.91060972]
[1732983882968,0.33,3664.4,3664.3,4.99891944]
[1732983883313,1.3834,3665.7,3664.3,4.99891944]
[1732983883314,1.3834,3665.7,3664.5,0.2723]
[1732983883516,1.3834,3665.7,3665.4,2.08830972]
[1732983883864,1.3834,3666.0,3665.4,2.08830972]
[1732983884165,1.3834,3666.0,3665.8,2.08830972]
[1732983884361,1.3834,3666.0,3665.4,2.08830972]
[1732983887211,1.3834,3666.0,3664.6,1.03384405]
[1732983887212,1.3834,3666.0,3665.8,2.08830972]
[1732983887413,1.3834,3666.7,3665.8,2.08830972]
[1732983887702,0.13834,3666.6,3666.3,2.08830972]
[1732983887907,1.3834,3666.7,3666.3,2.08830972]
[1732983892296,1.4834,3666.7,3665.9,2.08830972]
[1732983892512,1.4834,3666.6,3665.9,2.08830972]
[1732983892716,1.57583431,3666.5,3665.9,2.08830972]
[1732983893230,1.54174,3666.5,3665.9,2.08830972]
[1732983893826,1.3834,3666.5,3666.3,2.08830972]
[1732983895604,1.3834,3666.5,3666.1,2.08830972]
[1732983900444,1.2973,3666.3,3665.8,0.2723]
[1732983900641,0.1,3666.7,3664.9,0.55267985]
[1732983900642,0.1,3665.9,3665.0,0.2723]
[1732983900957,1.44703,3665.8,3665.0,0.2723]
[1732983901169,1.2973,3665.8,3665.7,2.08830972]
[1732983901312,1.2973,3666.3,3665.7,2.08830972]
[1732983901743,0.1,3666.2,3665.7,2.08830972]
[1732983903061,1.2973,3666.1,3665.7,2.08830972]
[1732983903554,1.2973,3666.1,3665.5,2.08830972]
[1732983903771,0.13973,3666.0,3665.5,2.08830972]
[1732983904956,0.13973,3666.0,3665.6,0.2725]
[1732983905170,0.13973,3666.0,3665.5,2.08830972]
[1732983905532,1.2973,3666.6,3665.9,2.08830972]
[1732983906063,0.1,3666.5,3665.9,2.08830972]
[1732983906265,1.2973,3666.6,3665.9,2.08830972]
[1732983906420,0.1,3666.5,3665.9,2.08830972]
[1732983906822,1.2973,3666.6,3665.9,2.08830972]
[1732983907029,1.2973,3666.6,3666.3,2.08830972]
[1732983908368,1.2973,3666.6,3665.7,0.2725]
[1732983908577,8.99,3667.6,3665.7,0.2725]
[1732983908578,1.3973,3666.4,3665.7,0.2725]
[1732983908799,1.3973,3666.4,3665.6,2.08830972]
[1732983908800,1.2973,3666.2,3665.3,2.08830972]
[1732983909755,1.2973,3666.2,3665.7,2.08830972]
[1732983911017,1.2973,3666.2,3665.4,0.2725]
[1732983912601,1.33139611,3666.1,3665.4,0.2725]
[1732983912783,1.2973,3665.9,3665.4,0.2725]
[1732983913509,0.13410094,3665.8,3665.3,2.08830972]
[1732983913714,1.2973,3665.7,3664.9,2.08830972]
[1732983915896,0.2,3665.8,3664.9,2.08830972]
[1732983915897,0.1,3665.5,3664.9,2.08830972]
[1732983916205,1.2973,3665.4,3664.9,2.08830972]
[1732983917298,1.3973,3665.4,3664.9,2.08830972]
[1732983918228,1.2973,3665.4,3664.9,2.08830972]
[1732983918398,1.3466,3665.7,3664.9,2.08830972]
[1732983918731,0.15466,3665.6,3664.9,2.08830972]
[1732983918944,1.3466,3665.7,3664.9,2.08830972]
[1732983920429,1.3466,3665.5,3664.9,2.08830972]
[1732983921061,1.3466,3665.2,3664.6,0.2725]
[1732983923955,1.4466,3665.0,3663.9,0.2725]
[1732983924163,1.63537007,3664.9,3663.3,0.2725]
[1732983924332,1.63537007,3664.9,3663.9,2.08830972]
[1732983924513,1.3466,3664.7,3663.8,2.08830972]
[1732983925366,1.3466,3664.7,3663.4,0.2725]
[1732983925367,1.3466,3664.7,3664.2,2.08830972]
[1732983925655,1.516726,3664.7,3664.2,2.08830972]
[1732983925857,0.1,3664.4,3664.2,2.08830972]
[1732983926026,1.3466,3664.3,3664.2,2.08830972]
[1732983928217,1.3466,3664.7,3664.2,2.08830972]
[1732983928923,1.3466,3664.7,3663.3,0.2725]
[1732983929125,1.3466,3664.7,3664.5,2.08830972]
[1732983930166,1.49126,3664.7,3664.5,2.08830972]
[1732983930663,1.49126,3664.7,3664.2,2.08830972]
[1732983931022,1.59126,3664.7,3664.2,2.08830972]
[1732983934947,0.1,3664.6,3664.2,2.08830972]
[1732983935183,0.1,3664.6,3664.3,0.2725]
[1732983935382,0.169126,3664.5,3664.3,0.2725]
[1732983935998,1.4466,3664.4,3663.8,2.08830972]
[1732983937395,0.1,3664.3,3663.8,2.08830972]
[1732983939062,1.3466,3664.4,3664.2,2.08830972]
[1732983940655,0.1,3664.3,3664.2,2.08830972]
[1732983940967,0.1,3664.3,3663.3,0.2725]
[1732983941166,0.1,3664.3,3663.9,2.08830972]
[1732983942889,0.1,3664.8,3663.9,2.29714069]
[1732983943061,1.3852,3664.7,3664.6,2.08830972]
[1732983945699,1.3852,3665.0,3664.6,2.08830972]
[1732983945904,0.1,3664.9,3664.6,2.08830972]
[1732983950854,1.3852,3665.0,3664.6,2.08830972]
[1732983951059,0.1,3664.9,3664.6,2.08830972]
[1732983952856,1.54372,3665.0,3664.6,2.08830972]
[1732983953061,0.1,3664.9,3664.6,2.08830972]
[1732983956054,0.1,3664.9,3664.2,2.36080972]
[1732983956364,1.3172,3664.6,3664.2,2.36080972]
[1732983957974,1.3172,3664.6,3664.2,0.26449475]
[1732983958762,1.3172,3664.6,3664.2,0.53699475]
[1732983960595,1.45892,3664.6,3664.2,0.53699475]
[1732983960894,0.1,3664.5,3664.2,0.53699475]
[1732983962997,0.1,3664.5,3664.4,0.94289375]
[1732983963858,1.5896,3664.8,3664.4,0.94289375]
[1732983964084,2.83867418,3666.3,3664.1,0.66523123]
[1732983964085,1.3896,3665.3,3664.7,0.94289375]
[1732983964333,1.3896,3665.3,3664.2,0.27444444]
[1732983964334,1.3896,3665.6,3665.4,0.94289375]
[1732983964512,1.54856,3665.6,3665.2,0.94289375]
[1732983964826,1.54856,3665.6,3665.2,2.08838199]
[1732983965030,0.1,3665.5,3665.2,2.08838199]
[1732983965326,0.1,3665.3,3665.2,2.08838199]
[1732983965529,1.54856,3665.6,3665.2,2.08838199]
[1732983965829,0.1,3665.4,3665.2,2.08838199]
[1732983966041,1.3896,3665.3,3664.8,2.08838199]
[1732983966189,0.1,3665.0,3664.8,2.08838199]
[1732983968328,0.1,3665.0,3663.9,3.2725]
[1732983968329,1.3896,3664.8,3664.5,0.2725]
[1732983968830,1.4896,3664.8,3664.4,2.08838199]
[1732983969231,0.1,3664.8,3664.4,2.08838199]
[1732983969599,0.1,3665.0,3664.4,2.08838199]
[1732983969806,1.3896,3665.1,3664.4,2.08838199]
[1732983969807,0.1,3664.8,3664.4,2.08838199]
[1732983971253,0.1,3664.8,3664.0,0.2725]
[1732983971448,0.2,3664.8,3664.0,0.2725]
[1732983972255,1.3896,3664.7,3664.0,0.2725]
[1732983972747,1.54856,3664.7,3664.0,0.2725]
[1732983974811,1.3896,3664.7,3664.3,2.08838199]
[1732983975013,0.1,3665.0,3664.3,2.08838199]
[1732983975214,1.3896,3665.2,3664.7,2.08838199]
[1732983975467,0.1,3665.0,3664.7,2.08838199]
[1732983975679,1.3896,3665.2,3664.7,2.08838199]
[1732983975887,0.1,3665.4,3665.1,2.08838199]
[1732983977268,0.14896,3665.3,3665.1,2.08838199]
[1732983977469,0.14896,3665.3,3664.7,2.08838199]
[1732983977677,0.1,3665.4,3664.7,2.08838199]
[1732983979574,0.1,3665.4,3664.9,2.08838199]
[1732983980890,0.1,3665.0,3664.9,2.08838199]
[1732983982911,1.3736,3664.9,3664.5,2.36088199]
[1732983983605,0.1,3665.0,3664.5,2.36088199]
[1732983985968,0.24736,3665.0,3664.5,2.36088199]
[1732983988994,0.24736,3665.0,3664.4,2.08838199]
[1732983990531,0.1,3664.8,3664.4,2.08838199]
[1732983990740,0.1,3664.7,3664.4,2.08838199]
[1732983990908,0.1,3664.8,3664.0,2.08838199]
[1732983990909,0.1,3664.5,3664.0,2.08838199]
[1732983995446,1.3736,3664.4,3664.0,2.08838199]
[1732983995913,1.52096,3664.4,3664.0,2.08838199]
[1732983996317,1.3736,3664.4,3664.0,2.08838199]
[1732983996996,0.1,3664.4,3664.0,2.08838199]
[1732983998000,1.4646,3665.0,3664.0,2.08838199]
[1732983998201,0.1,3665.0,3664.6,2.08838199]
[1732983998718,8.99,3666.2,3664.6,2.08838199]
[1732983998719,1.3646,3665.5,3664.6,2.08838199]
[1732983998947,0.1,3665.3,3665.0,2.08838199]
[1732983999643,0.1,3665.3,3664.8,2.08838199]
[1732984000836,0.03410457,3665.4,3664.3,0.2725]
[1732984000837,0.1,3664.8,3664.4,2.08838199]
[1732984002116,1.4646,3664.7,3664.4,2.08838199]
[1732984002517,0.1,3664.4,3663.6,2.36088199]
[1732984003241,0.1,3664.6,3664.0,2.08838199]
[1732984003242,0.2,3664.6,3664.0,2.08838199]
[1732984003553,0.1,3664.4,3664.0,2.08838199]
[1732984004257,0.1,3664.4,3662.9,0.53757134]
[1732984004258,1.3646,3664.3,3663.6,0.2725]
[1732984004425,1.3646,3664.3,3663.6,2.36088199]
[1732984005394,1.3646,3664.3,3664.0,2.08838199]
[1732984005533,1.52106,3664.3,3664.0,2.08838199]
[1732984005717,1.62106,3664.3,3664.0,2.08838199]
[1732984008221,0.1,3664.3,3664.0,2.08838199]
[1732984009662,1.3646,3664.2,3664.0,2.08838199]
[1732984010872,0.1,3664.1,3663.6,2.36088199]
[1732984011204,0.1,3664.1,3663.6,0.2725]
[1732984011498,0.03411575,3665.3,3662.2,1.34715473]
[1732984011499,0.1,3663.5,3662.6,0.2725]
[1732984011659,1.3646,3663.4,3662.8,2.08838199]
[1732984012501,1.4646,3663.4,3662.8,2.08838199]
[1732984012936,0.1,3663.3,3662.8,2.08838199]
[1732984015782,1.3646,3663.0,3662.4,0.2725]
[1732984015963,0.1,3662.5,3661.5,0.2725]
[1732984016169,1.3646,3662.4,3661.9,2.08838199]
[1732984016865,0.7472,3662.4,3661.9,2.08838199]
[1732984017061,0.1298,3662.4,3661.9,2.08838199]
[1732984018808,0.2298,3662.4,3661.7,0.2553]
[1732984019107,0.2298,3662.4,3661.5,2.36088199]
[1732984020108,0.2298,3662.4,3661.5,2.08838199]
[1732984025607,0.2298,3662.4,3661.7,1.3439]
[1732984025933,0.2298,3662.4,3661.9,2.08838199]
[1732984026707,0.2298,3662.4,3661.7,1.3439]
[1732984027238,0.2298,3662.4,3661.6,2.08838199]
[1732984029533,0.2298,3662.4,3661.6,3.43228199]
[1732984029839,0.1,3662.5,3662.3,3.60552]
[1732984030214,0.1,3662.5,3662.4,2.73044]
[1732984031300,0.65,3662.5,3662.4,2.73044]
[1732984032717,2.062,3662.5,3662.4,2.73044]
[1732984035311,2.2682,3662.5,3662.4,2.73044]
[1732984037215,2.062,3662.5,3662.4,2.73044]
[1732984040338,1.512,3662.5,3662.4,2.73044]
[1732984042067,2.062,3662.5,3662.4,2.73044]
[1732984044366,1e-05,3662.5,3662.4,2.73044]
[1732984044528,2.08838199,3663.9,3662.4,2.73044]
[1732984044529,1.4456,3663.1,3663.0,2.73]
[1732984044846,1.59016,3663.1,3663.0,2.73]
[1732984045731,2.14016,3663.1,3663.0,2.73]
[1732984046042,1.4456,3663.1,3663.0,2.73]
[1732984047460,1.9956,3663.8,3663.1,2.72992]
[1732984047866,1.9956,3663.8,3663.7,2.72948]
[1732984048085,2.548129,3663.8,3663.5,2.72957]
[1732984048293,2.548129,3663.8,3663.7,2.72948]
[1732984048490,2.548129,3663.8,3663.5,2.72957]
[1732984048649,2.548129,3663.8,3663.7,2.72948]
[1732984048849,1.9956,3663.8,3663.7,2.21830639]
[1732984049088,1.9956,3663.8,3663.5,2.72957]
[1732984050695,1.9956,3663.8,3663.7,2.72948]
[1732984052248,2.0384,3664.0,3663.3,2.72973]
[1732984052491,5.60221577,3663.9,3663.8,2.7294]
[1732984052695,5.60221577,3663.9,3663.3,2.72973]
[1732984052696,0.55,3663.7,3663.6,2.72949]
[1732984054704,1.4884,3663.6,3663.5,2.72963]
[1732984054886,2.0384,3663.5,3663.4,2.72964]
[1732984057461,1.4884,3663.5,3663.4,2.72964]
[1732984059906,2.0384,3663.5,3663.4,2.72964]
[1732984060062,2.24224,3663.5,3663.4,2.72964]
[1732984062306,2.24224,3663.5,3662.2,0.2725]
[1732984062307,0.55,3663.1,3662.5,2.7303]
[1732984062484,0.55,3663.1,3663.0,2.73]
[1732984062485,2.059732,3663.1,3663.0,2.73]
[1732984062681,2.0256,3663.1,3663.0,2.73]
[1732984062867,2.581129,3663.1,3663.0,2.73]
[1732984065875,2.0256,3663.0,3662.9,2.73006]
[1732984066112,4.11382044,3663.0,3662.7,2.73022]
[1732984066285,2.0256,3662.8,3662.7,2.73022]
[1732984067819,2.05973316,3662.8,3662.7,2.73022]
[1732984067984,2.68422838,3662.8,3662.7,2.73022]
[1732984068187,2.68422838,3662.8,3662.5,2.73036]
[1732984068188,4.07969,3662.7,3661.5,5.46224]
[1732984068418,4.07969,3662.5,3662.4,2.73044]
[1732984068579,4.69766852,3662.5,3662.4,2.73044]
[1732984070520,4.07969,3662.5,3662.4,2.73044]
[1732984072101,5.00529,3663.2,3663.1,2.72992]
[1732984072427,1.4756,3664.0,3663.8,2.72933]
[1732984072724,0.03412202,3663.9,3663.5,2.72956]
[1732984073032,0.56609368,3663.9,3663.7,2.72942]
[1732984073232,0.53197166,3663.9,3663.8,2.7294]
[1732984075119,1.50972125,3664.0,3663.9,2.72933]
[1732984075722,2.0256,3664.0,3663.9,2.72933]
[1732984076017,2.0256,3664.0,3662.9,1.4541]
[1732984076318,0.55,3663.9,3663.8,2.7294]
[1732984078696,0.55,3664.0,3663.8,2.7294]
[1732984078882,0.55,3664.0,3663.9,2.72933]
[1732984079090,1.112819,3664.0,3663.9,2.72933]
[1732984079823,1.14693926,3664.0,3663.9,2.72933]
[1732984080733,1.112819,3664.0,3663.9,2.45213242]
[1732984080879,2.69544055,3664.0,3663.9,2.45213242]
[1732984081522,2.69544055,3664.0,3663.9,2.72933]
[1732984084617,1.5485,3663.9,3662.9,4.15341]
[1732984084803,0.58412732,3663.8,3663.6,2.72955]
[1732984085010,0.03412732,3663.8,3663.7,2.72948]
[1732984085196,0.03412732,3663.8,3663.5,1.4234]
[1732984085197,2.71802498,3664.6,3664.5,2.72888]
[1732984085538,1.16952498,3664.6,3664.5,2.72888]
[1732984085712,1.44132748,3664.6,3664.5,2.72888]
[1732984085913,1.47544138,3664.6,3664.5,2.72888]
[1732984086351,1.44132748,3664.6,3664.5,2.72888]
[1732984087326,1.16952498,3664.6,3664.5,2.72888]
[1732984087503,1.71952498,3664.6,3664.5,2.72888]
[1732984088317,1.71952498,3664.6,3664.3,2.72897]
[1732984088318,0.55,3664.9,3664.8,2.72866]
[1732984090528,0.55,3665.1,3664.8,2.72866]
[1732984090836,0.58411157,3665.1,3664.9,2.72857]
[1732984091042,0.55,3664.9,3664.8,2.72866]
[1732984094511,0.55,3664.7,3664.3,2.729]
[1732984094745,0.55,3664.5,3664.4,2.72895]
[1732984094913,0.76245163,3664.5,3664.4,2.72895]
[1732984095683,0.21326116,3665.0,3664.4,2.72895]
[1732984095684,0.76326116,3665.0,3664.9,2.72858]
[1732984097867,0.79737251,3665.0,3664.9,2.72858]
[1732984098866,0.76326116,3665.0,3664.9,2.72858]
[1732984100856,2.1348,3664.9,3664.0,1.6111]
[1732984101037,0.55,3664.7,3664.6,2.72876]
[1732984101221,0.55,3664.7,3664.4,2.72894]
[1732984101428,0.55,3664.5,3664.4,2.72894]
[1732984101658,0.55,3664.7,3664.4,2.72894]
[1732984101966,0.55,3664.7,3664.5,2.72887]
[1732984102136,0.79621337,3664.6,3664.5,2.72887]
[1732984103826,0.55,3664.5,3664.2,2.72909]
[1732984104082,0.55,3664.3,3664.1,2.72915]
[1732984104231,0.58411782,3664.2,3664.1,2.72915]
[1732984105869,0.55,3664.1,3663.9,2.72926]
[1732984106032,0.55,3664.1,3664.0,2.72923]
[1732984106236,0.76689207,3664.1,3664.0,2.72923]
[1732984107072,0.76689207,3664.1,3663.8,2.7294]
[1732984107277,2.1348,3663.9,3663.8,2.7294]
[1732984108856,2.1348,3664.2,3664.0,2.7292]
[1732984109060,0.55,3664.1,3664.0,2.7292]
[1732984111186,0.55,3664.2,3664.1,2.72918]
[1732984112046,0.55,3664.4,3664.3,2.72899]
[1732984112244,1.43462146,3664.4,3664.3,2.72899]
[1732984112481,1.43462146,3664.4,3664.1,2.72918]
[1732984112687,1.18155785,3664.4,3664.1,2.72918]
[1732984114050,0.03411857,3664.3,3663.9,2.72933]
[1732984114358,0.58411857,3664.3,3664.2,2.72909]
[1732984114567,1.24175655,3664.3,3664.2,2.72909]
[1732984115555,1.20763798,3664.3,3664.2,2.72909]
[1732984115952,0.55,3664.2,3663.6,1.6111]
[1732984116158,0.55,3664.0,3663.9,2.72932]
[1732984117267,0.55,3664.1,3663.9,2.72932]
[1732984117461,0.58412059,3664.0,3663.9,2.72932]
[1732984117661,0.58412059,3664.0,3663.3,4.34082]
[1732984117662,2.39469645,3664.0,3663.5,2.72958]
[1732984117860,0.55,3663.9,3663.6,2.72948]
[1732984118391,0.55,3663.9,3663.7,2.72947]
[1732984119192,0.55,3663.9,3663.0,1.6396]
[1732984119400,1.81057586,3664.0,3663.4,2.72969]
[1732984119401,0.55,3663.7,3663.4,2.72969]
[1732984120384,0.55,3663.8,3663.4,2.72969]
[1732984120571,0.55,3663.6,3663.4,2.72969]
[1732984120779,0.55,3663.6,3663.2,2.72985]
[1732984120981,4.07621441,3663.7,3662.1,4.81903199]
[1732984120982,0.55,3663.4,3662.6,1.6396]
[1732984121307,0.55,3663.2,3663.0,2.72995]
[1732984121599,0.55,3663.3,3663.0,2.72995]
[1732984121795,0.55,3663.1,3663.0,2.72995]
[1732984122816,0.55,3662.9,3662.6,2.73029]
[1732984125629,0.55,3662.7,3662.4,2.73044]
[1732984125787,0.55,3662.5,3662.4,2.73044]
[1732984126420,0.55,3662.8,3662.4,2.73044]
[1732984126582,0.55,3662.6,3662.4,2.73044]
[1732984127128,0.88165716,3662.7,3662.2,2.73059]
[1732984127129,0.55,3662.4,3662.2,2.73059]
[1732984127286,0.58413527,3662.3,3662.2,2.73059]
[1732984127909,3.52969,3662.9,3661.8,2.73087]
[1732984127910,4.07969,3662.9,3662.8,2.73015]
[1732984128095,0.57452189,3663.2,3663.0,2.72994]
[1732984128394,0.03412846,3663.2,3662.9,2.73003]
[1732984129319,0.55,3663.1,3662.4,1.5008]
[1732984129525,2.0865,3662.9,3662.7,2.73016]
[1732984129824,0.55,3662.7,3662.3,2.73051]
[1732984129983,0.55,3662.5,3662.3,2.73051]
[1732984130184,0.55,3662.4,3662.3,2.73051]
[1732984130897,2.0865,3662.3,3662.2,2.73052]
[1732984131109,2.0865,3662.3,3662.2,2.73059]
[1732984133928,0.55,3662.4,3662.3,2.73045]
[1732984136022,0.55,3662.4,3662.2,5.46118]
[1732984136201,0.80276477,3662.3,3662.2,2.73059]
[1732984139433,0.55,3662.4,3662.3,2.73052]
[1732984139634,0.55,3662.6,3662.5,2.73037]
[1732984141809,0.55,3662.7,3662.6,2.7303]
[1732984142031,0.55,3662.9,3662.5,2.73037]
[1732984142237,0.55,3662.9,3662.7,2.73017]
[1732984142446,1.110999,3662.8,3662.7,2.73017]
[1732984144207,0.55,3662.9,3662.7,4.27807]
[1732984144411,0.55,3662.9,3662.8,2.73015]
[1732984145309,0.55,3662.9,3662.7,2.73017]
[1732984145310,2.0803,3662.8,3662.7,2.73017]
[1732984145510,0.55,3662.7,3662.6,2.73027]
[1732984145943,4.07969,3662.7,3662.5,2.73035]
[1732984146119,0.56441213,3662.6,3662.5,2.73035]
[1732984146321,1.11441213,3662.6,3662.5,2.73035]
[1732984147637,1.14854455,3662.6,3662.5,2.73035]
[1732984147822,1.11441213,3662.6,3662.5,2.73035]
[1732984148019,2.64471213,3662.6,3662.5,2.73035]
[1732984148220,2.64471213,3662.6,3662.3,2.73051]
[1732984148221,0.55,3662.5,3662.3,2.73051]
[1732984148451,0.67244021,3662.4,3662.3,2.73051]
[1732984148944,1.22244021,3662.4,3662.3,2.73051]
[1732984150115,0.55,3662.3,3662.1,2.73064]
[1732984150315,0.55,3662.2,3662.1,2.73064]
[1732984150747,0.55,3662.3,3662.2,2.73059]
[1732984150943,1.23809796,3662.3,3661.8,2.73089]
[1732984151140,1.23809796,3662.3,3662.2,2.73059]
[1732984153218,1.27223473,3662.3,3662.0,2.7307]
[1732984153638,1.27223473,3662.3,3662.1,2.73062]
[1732984153959,1.03019247,3662.2,3662.1,2.73062]
[1732984155647,0.55,3662.1,3661.9,2.73075]
[1732984156029,2.0803,3662.0,3661.9,2.73075]
[1732984157164,0.55,3661.9,3661.6,2.73097]
[1732984157364,0.55,3661.9,3661.2,1.5433]
[1732984157658,0.55,3661.9,3661.8,2.73089]
[1732984159256,0.55,3662.2,3662.0,2.73071]
[1732984159453,0.55,3662.2,3661.8,2.73089]
[1732984159662,0.55,3662.2,3661.1,2.73136]
[1732984159663,3.52969,3662.4,3662.1,2.73067]
[1732984159959,3.52969,3662.4,3662.3,2.73052]
[1732984160119,1.5531,3662.8,3662.1,2.73067]
[1732984160120,5.08279,3662.8,3662.7,2.73022]
[1732984160957,5.08279,3662.8,3661.9,1.5433]
[1732984160958,5.08279,3662.8,3662.6,2.73028]
[1732984161357,0.55,3662.7,3662.6,2.73028]
[1732984165845,0.55,3663.2,3663.0,2.72995]
[1732984166025,1.109289,3663.1,3663.0,2.72995]
[1732984167057,0.559289,3663.1,3663.0,2.72995]
[1732984168245,1.109289,3663.1,3663.0,2.72995]
[1732984170129,1.14341701,3663.1,3663.0,2.72995]
[1732984170873,1.143417,3663.1,3663.0,2.72995]
[1732984171039,1.143417,3663.1,3662.5,4.35461]
[1732984171040,0.55,3663.0,3662.9,2.73007]
[1732984171238,1.0173107,3663.0,3662.9,2.73007]
[1732984178285,1.05143955,3663.0,3662.7,2.73022]
[1732984178587,1.05143955,3663.0,3662.9,2.73007]
[1732984181009,0.55,3662.8,3662.7,2.73022]
[1732984181152,0.81327408,3662.8,3662.7,2.73022]
[1732984182256,0.55,3662.9,3662.7,2.73022]
[1732984182583,0.55,3662.9,3662.8,2.73015]
[1732984182794,1.5813,3663.5,3662.7,2.73022]
[1732984183012,3.52969,3663.7,3663.4,2.72963]
[1732984183312,3.52969,3663.7,3663.6,2.72955]
[1732984183447,4.15420728,3663.7,3663.6,2.72955]
[1732984183962,1.5813,3663.6,3663.2,2.72983]
[1732984184286,0.03412522,3663.5,3663.2,2.72983]
[1732984184853,0.55,3663.4,3662.8,2.73014]
[1732984185173,0.55,3663.2,3663.0,2.72999]
[1732984185376,2.1313,3663.0,3662.7,2.73019]
[1732984185577,0.55,3662.8,3662.7,2.73019]
[1732984185928,0.55,3662.8,3662.5,2.73037]
[1732984186090,0.55,3662.6,3662.5,2.73037]
[1732984186990,0.55,3662.8,3662.5,2.73037]
[1732984187297,0.55,3662.6,3662.5,2.73037]
[1732984187978,0.55,3662.8,3662.5,2.73037]
[1732984188184,0.55,3662.6,3662.5,2.73037]
[1732984188781,0.55,3662.6,3662.3,2.73052]
[1732984188982,0.55,3662.4,3662.3,2.73052]
[1732984189296,0.55,3662.4,3662.2,2.73058]
[1732984189802,0.55,3662.4,3662.3,2.73052]
[1732984189984,0.55,3662.5,3662.3,2.73052]